[Event "NED-ch U14 Girls 2019"]
[Site "Assen"]
[Date "2019.04.29"]
[Round "2.7"]
[White "Ubbink, Anouk"]
[Black "Bogouslavskii, Veronique"]
[Result "0-1"]
[ECO "C56"]
[WhiteElo "1304"]
[BlackElo "1247"]
[Annotator "NA RC"]
[PlyCount "86"]
[EventDate "2019.04.28"]
[EventType "swiss"]
[EventCountry "NED"]
[SourceTitle "playchess.com"]
[Source "ChessBase"]
[SourceQuality "1"]
[TimeControl "40/5400+30:1800+30"]

1. e4 {[%emt 0:00:00]} e5 {[%emt 0:00:00]} 2. Nf3 {[%emt 0:00:00]} Nc6 {[%emt 0:00:00]} 3. d4 {[%emt 0:00:00]} exd4 {[%emt 0:00:00]} 4. Bc4 {[%emt 0:00:00]} Nf6 {[%emt 0:00:16]} 5. c3 {[%emt 0:00:00]} Nxe4 {[%emt 0:00:29]} 6. cxd4 {[%emt 0:00:14]} d5 {[%emt 0:00:58]} 7. Bb3 {[%emt 0:00:57]} Be7 {[%emt 0:00:59]} 8. O-O {[%emt 0:01:43]} O-O {[%emt 0:00:20]} 9. Nc3 {[%emt 0:01:35]} Nf6 {[%emt 0:03:16]} 10. Ne5 {[%emt 0:04:10]} Bf5 {[%emt 0:05:59]} 11. Qf3 {[%emt 0:04:49]} Nxd4 {[%emt 0:02:51]} 12. Qf4 {[%emt 0:05:05]} Ne4 {[%emt 0:04:21]} 13. Qe3 {[%emt 0:05:33]} Nxb3 {[%emt 0:01:29]} 14. axb3 {[%emt 0:00:31]} d4 {[%emt 0:06:23]} 15. Qe2 {[%emt 0:03:14]} dxc3 {[%emt 0:00:47]} 16. g4 {[%emt 0:02:06]} cxb2 {[%emt 0:06:30]} 17. Bxb2 {[%emt 0:00:49]} Bxg4 {[%emt 0:02:33]} 18. Qxg4 {[%emt 0:01:15]} Nf6 {[%emt 0:00:47]} 19. Qg2 {[%emt 0:04:03]} Qd5 {[%emt 0:02:08]} 20. Qxd5 {[%emt 0:01:03]} Nxd5 {[%emt 0:00:10]} 21. Rfe1 {[%emt 0:00:40]} Bd6 {[%emt 0:02:01]} 22. Nc4 {[%emt 0:05:28]} Nb4 {[%emt 0:08:10]} 23. Rad1 {[%emt 0:06:39]} Rad8 {[%emt 0:08:09]} 24. Nxd6 {[%emt 0:04:44]} Rxd6 {[%emt 0:02:26]} 25. Rxd6 {[%emt 0:02:11]} cxd6 {[%emt 0:00:15]} 26. Re7 {[%emt 0:00:19]} Rb8 {[%emt 0:01:12]} 27. Ba3 {[%emt 0:01:29]} Kf8 {[%emt 0:13:37]} 28. Rd7 {[%emt 0:01:58]} Ke8 {[%emt 0:00:18]} 29. Rxd6 {[%emt 0:00:17]} Nc6 {[%emt 0:00:23]} 30. Kg2 {[%emt 0:01:23]} Rd8 {[%emt 0:00:29]} 31. Rxd8+ {[%emt 0:00:12]} Kxd8 {[%emt 0:00:05]} 32. Bb2 {[%emt 0:00:37]} g6 {[%emt 0:00:53]} 33. Kf3 {[%emt 0:00:06]} Ke7 {[%emt 0:00:25]} 34. Ke4 {[%emt 0:00:13]} Ke6 {[%emt 0:00:21]} 35. Bc1 {[%emt 0:01:35]} a6 {[%emt 0:05:23]} 36. Be3 {[%emt 0:01:07]} Na5 {[%emt 0:01:19]} 37. b4 {[%emt 0:00:21]} Nc6 {[%emt 0:00:07]} 38. Bc5 {[%emt 0:01:17]} Ne5 {[%emt 0:01:40]} 39. f4 {[%emt 0:00:36]} f5+ {[%emt 0:01:45]} 40. Kd4 {[%emt 0:00:53]} Nf3+ {[%emt 0:00:10]} 41. Ke3 {[%emt 0:30:15]} Nxh2 {[%emt 0:30:10]} 42. Bf8 {[%emt 0:00:15]} h5 {[%emt 0:00:50]} 43. Bh6 {[%emt 0:00:13]} Ng4+ {[%emt 0:00:05]} 0-1

[Event "NED-ch U14 Girls 2019"]
[Site "Assen"]
[Date "2019.04.29"]
[Round "2.8"]
[White "Jonkman Inza, Amelia Marry"]
[Black "Molanus, Eva"]
[Result "0-1"]
[ECO "D15"]
[WhiteElo "1132"]
[BlackElo "1258"]
[Annotator "NA RC"]
[PlyCount "66"]
[EventDate "2019.04.28"]
[EventType "swiss"]
[EventCountry "NED"]
[SourceTitle "playchess.com"]
[Source "ChessBase"]
[SourceQuality "1"]
[TimeControl "40/5400+30:1800+30"]

1. d4 {[%emt 0:00:00]} d5 {[%emt 0:00:00]} 2. c4 {[%emt 0:00:00]} c6 {[%emt 0:00:00]} 3. Nc3 {[%emt 0:00:00]} Nf6 {[%emt 0:00:00]} 4. Nf3 {[%emt 0:00:19]} Bf5 {[%emt 0:00:24]} 5. Bg5 {[%emt 0:02:25]} e6 {[%emt 0:00:54]} 6. e3 {[%emt 0:01:03]} Nbd7 {[%emt 0:00:42]} 7. Bd3 {[%emt 0:01:33]} Bg6 {[%emt 0:02:03]} 8. O-O {[%emt 0:03:32]} Bd6 {[%emt 0:01:55]} 9. Re1 {[%emt 0:02:57]} O-O {[%emt 0:07:19]} 10. e4 {[%emt 0:03:09]} dxe4 {[%emt 0:01:51]} 11. Nxe4 {[%emt 0:01:14]} Be7 {[%emt 0:02:38]} 12. Qd2 {[%emt 0:03:48]} Bh5 {[%emt 0:06:57]} 13. Qf4 {[%emt 0:06:05]} Nxe4 {[%emt 0:11:47]} 14. Bxe7 {[%emt 0:01:34]} Qxe7 {[%emt 0:03:10]} 15. Bxe4 {[%emt 0:03:13]} Nf6 {[%emt 0:02:30]} 16. Bc2 {[%emt 0:01:57]} Rad8 {[%emt 0:04:13]} 17. Rad1 {[%emt 0:04:08]} Qb4 {[%emt 0:06:44]} 18. Re3 {[%emt 0:13:23]} Qxc4 {[%emt 0:07:28]} 19. Bb3 {[%emt 0:03:41]} Qb4 {[%emt 0:04:47]} 20. h3 {[%emt 0:04:20]} Nd5 {[%emt 0:02:12]} 21. Bxd5 {[%emt 0:00:46]} Rxd5 {[%emt 0:00:54]} 22. Rb3 {[%emt 0:01:28]} Qa4 {[%emt 0:01:40]} 23. Ra3 {[%emt 0:03:03]} Qxd1+ {[%emt 0:00:35]} 24. Kh2 {[%emt 0:01:43]} Bxf3 {[%emt 0:00:44]} 25. Rxf3 {[%emt 0:00:24]} Rf5 {[%emt 0:00:51]} 26. Qg4 {[%emt 0:00:36]} Rxf3 {[%emt 0:01:09]} 27. gxf3 {[%emt 0:00:22]} f5 {[%emt 0:00:59]} 28. Qg3 {[%emt 0:00:18]} Qxd4 {[%emt 0:00:48]} 29. b3 {[%emt 0:00:14]} f4 {[%emt 0:00:30]} 30. Qg2 {[%emt 0:00:16]} Rf6 {[%emt 0:00:16]} 31. Qf1 {[%emt 0:01:18]} Rg6 {[%emt 0:00:40]} 32. Qe2 {[%emt 0:01:22]} Qa1 {[%emt 0:00:32]} 33. h4 {[%emt 0:00:36]} Qg1+ {[%emt 0:00:09]} 0-1

[Event "NED-ch U14 Girls 2019"]
[Site "Assen"]
[Date "2019.04.29"]
[Round "2.9"]
[White "Venema, Katja"]
[Black "Tangarife Ramirez, Katja"]
[Result "1-0"]
[ECO "B08"]
[WhiteElo "1166"]
[BlackElo "1348"]
[Annotator "NA RC"]
[PlyCount "121"]
[EventDate "2019.04.28"]
[EventType "swiss"]
[EventCountry "NED"]
[SourceTitle "playchess.com"]
[Source "ChessBase"]
[SourceQuality "1"]
[TimeControl "40/5400+30:1800+30"]

1. d4 {[%emt 0:00:00]} g6 {[%emt 0:00:06]} 2. Nf3 {[%emt 0:00:00]} Bg7 {[%emt 0:00:39]} 3. e4 {[%emt 0:00:33]} d6 {[%emt 0:00:57]} 4. Bc4 {[%emt 0:01:08]} Nf6 {[%emt 0:01:11]} 5. Nc3 {[%emt 0:00:46]} O-O {[%emt 0:02:59]} 6. h3 {[%emt 0:01:41]} Nxe4 {[%emt 0:01:43]} 7. Nxe4 {[%emt 0:00:29]} d5 {[%emt 0:00:36]} 8. Bd3 {[%emt 0:00:35]} dxe4 {[%emt 0:00:53]} 9. Bxe4 {[%emt 0:00:09]} Nd7 {[%emt 0:01:14]} 10. Be3 {[%emt 0:02:22]} e5 {[%emt 0:01:30]} 11. c4 {[%emt 0:05:18]} c6 {[%emt 0:04:49]} 12. Qd2 {[%emt 0:02:25]} Nf6 {[%emt 0:02:16]} 13. Bc2 {[%emt 0:02:33]} exd4 {[%emt 0:02:13]} 14. Nxd4 {[%emt 0:01:32]} Re8 {[%emt 0:04:21]} 15. O-O-O {[%emt 0:08:58]} Ne4 {[%emt 0:05:21]} 16. Qe2 {[%emt 0:06:50]} Qf6 {[%emt 0:06:14]} 17. Bb3 {[%emt 0:06:49]} a5 {[%emt 0:07:49]} 18. Ba4 {[%emt 0:05:15]} Nc5 {[%emt 0:02:29]} 19. Qc2 {[%emt 0:03:24]} Bf5 {[%emt 0:11:01]} 20. Nxf5 {[%emt 0:02:29]} Nxa4 {[%emt 0:00:59]} 21. Nxg7 {[%emt 0:01:31]} Rxe3 {[%emt 0:04:20]} 22. fxe3 {[%emt 0:00:55]} b5 {[%emt 0:01:55]} 23. cxb5 {[%emt 0:03:29]} cxb5 {[%emt 0:00:31]} 24. Nh5 {[%emt 0:03:21]} gxh5 {[%emt 0:02:21]} 25. Rhf1 {[%emt 0:02:39]} Qe6 {[%emt 0:04:42]} 26. Qb3 {[%emt 0:07:39]} Qxb3 {[%emt 0:04:58]} 27. axb3 {[%emt 0:00:08]} Nc5 {[%emt 0:00:18]} 28. Rf5 {[%emt 0:01:56]} Rc8 {[%emt 0:02:00]} 29. Kb1 {[%emt 0:00:49]} b4 {[%emt 0:01:34]} 30. Ka2 {[%emt 0:02:21]} Rc7 {[%emt 0:04:12]} 31. Rdd5 {[%emt 0:01:53]} Ne4 {[%emt 0:02:08]} 32. Rxa5 {[%emt 0:02:36]} Rc2 {[%emt 0:00:40]} 33. Kb1 {[%emt 0:01:26]} Rxg2 {[%emt 0:01:06]} 34. Rf4 {[%emt 0:03:30]} Nd2+ {[%emt 0:01:19]} 35. Ka2 {[%emt 0:00:30]} Rg3 {[%emt 0:01:54]} 36. Rxb4 {[%emt 0:01:15]} Rxh3 {[%emt 0:01:00]} 37. Rg5+ {[%emt 0:00:43]} Kf8 {[%emt 0:00:26]} 38. Rb8+ {[%emt 0:00:56]} Ke7 {[%emt 0:00:23]} 39. Rb7+ {[%emt 0:00:34]} Kf8 {[%emt 0:01:01]} 40. Rf5 {[%emt 0:00:43]} Rf3 {[%emt 0:02:36]} 41. Rxf3 {[%emt 0:31:15]} Nxf3 {[%emt 0:30:17]} 42. Rb5 {[%emt 0:00:18]} h4 {[%emt 0:00:45]} 43. Rf5 {[%emt 0:00:48]} Ng1 {[%emt 0:01:25]} 44. Rf1 {[%emt 0:00:28]} Ne2 {[%emt 0:01:54]} 45. Rh1 {[%emt 0:00:30]} Ng3 {[%emt 0:00:49]} 46. Rxh4 {[%emt 0:00:25]} Nf5 {[%emt 0:00:23]} 47. Rxh7 {[%emt 0:00:35]} Nxe3 {[%emt 0:00:32]} 48. b4 {[%emt 0:00:30]} Ke7 {[%emt 0:00:23]} 49. Kb3 {[%emt 0:00:29]} Ke6 {[%emt 0:00:40]} 50. Rh3 {[%emt 0:00:51]} Nd5 {[%emt 0:00:57]} 51. b5 {[%emt 0:00:47]} f5 {[%emt 0:00:18]} 52. Rh6+ {[%emt 0:00:26]} Kd7 {[%emt 0:01:02]} 53. Kc4 {[%emt 0:00:57]} Ne3+ {[%emt 0:02:00]} 54. Kd4 {[%emt 0:00:51]} Nd1 {[%emt 0:03:42]} 55. b4 {[%emt 0:00:56]} Ke7 {[%emt 0:01:38]} 56. b6 {[%emt 0:00:44]} Kd7 {[%emt 0:00:33]} 57. Rh7+ {[%emt 0:00:33]} Kc8 {[%emt 0:00:30]} 58. b7+ {[%emt 0:00:18]} Kb8 {[%emt 0:00:36]} 59. Kc5 {[%emt 0:00:31]} Ne3 {[%emt 0:01:00]} 60. Kc6 {[%emt 0:00:40]} Ka7 {[%emt 0:01:12]} 61. b5 {[%emt 0:00:24]} 1-0

[Event "NED-ch U14 Girls 2019"]
[Site "Assen"]
[Date "2019.04.30"]
[Round "3.1"]
[White "Huang, Wendy"]
[Black "Mensing, Luana"]
[Result "1-0"]
[ECO "B93"]
[WhiteElo "1586"]
[BlackElo "1549"]
[Annotator "NA"]
[PlyCount "47"]
[EventDate "2019.04.28"]
[EventType "swiss"]
[EventCountry "NED"]
[SourceTitle "playchess.com"]
[Source "ChessBase"]
[SourceQuality "1"]
[TimeControl "40/5400+30:1800+30"]

1. e4 {[%emt 0:00:00]} c5 {[%emt 0:00:00]} 2. Nf3 {[%emt 0:00:00]} d6 {[%emt 0:00:00]} 3. d4 {[%emt 0:00:00]} cxd4 {[%emt 0:00:04]} 4. Nxd4 {[%emt 0:00:00]} Nf6 {[%emt 0:00:10]} 5. Nc3 {[%emt 0:00:01]} a6 {[%emt 0:00:08]} 6. f4 {[%emt 0:00:08]} e5 {[%emt 0:00:36]} 7. Nf3 {[%emt 0:00:07]} Nbd7 {[%emt 0:01:24]} 8. a4 {[%emt 0:00:20]} Qc7 {[%emt 0:02:05]} 9. Bd3 {[%emt 0:01:58]} g6 {[%emt 0:04:40]} 10. fxe5 {[%emt 0:11:49]} dxe5 {[%emt 0:00:44]} 11. O-O {[%emt 0:01:34]} Bg7 {[%emt 0:07:24]} 12. Qe2 {[%emt 0:03:47]} O-O {[%emt 0:03:55]} 13. Kh1 {[%emt 0:02:15]} Nc5 {[%emt 0:14:55]} 14. Bc4 {[%emt 0:10:49]} Bg4 {[%emt 0:03:49]} 15. Bg5 {[%emt 0:05:35]} Rac8 {[%emt 0:09:07]} 16. Bxf6 {[%emt 0:08:17]} Bxf6 {[%emt 0:00:11]} 17. Nd5 {[%emt 0:01:34]} Qd6 {[%emt 0:08:05]} 18. Rad1 {[%emt 0:12:08]} Nxa4 {[%emt 0:12:43]} 19. Ne3 {[%emt 0:10:12]} Bxf3 {[%emt 0:01:30]} 20. Qxf3 {[%emt 0:01:05]} Qe7 {[%emt 0:01:58]} 21. Nd5 {[%emt 0:01:15]} Qc5 {[%emt 0:03:37]} 22. Qxf6 {[%emt 0:01:23]} Rce8 {[%emt 0:02:31]} 23. Nb6 {[%emt 0:06:50]} Qc7 {[%emt 0:04:24]} 24. Rd7 {[%emt 0:01:43]} 1-0

[Event "NED-ch U14 Girls 2019"]
[Site "Assen"]
[Date "2019.04.30"]
[Round "3.2"]
[White "Den Heijer, Rolinde"]
[Black "Morote, Luna"]
[Result "1-0"]
[ECO "B90"]
[WhiteElo "1423"]
[BlackElo "1360"]
[Annotator "NA"]
[PlyCount "128"]
[EventDate "2019.04.28"]
[EventType "swiss"]
[EventCountry "NED"]
[SourceTitle "playchess.com"]
[Source "ChessBase"]
[SourceQuality "1"]
[TimeControl "40/5400+30:1800+30"]

1. e4 {[%emt 0:00:00]} c5 {[%emt 0:00:00]} 2. Nf3 {[%emt 0:00:00]} d6 {[%emt 0:00:00]} 3. d4 {[%emt 0:00:00]} cxd4 {[%emt 0:00:00]} 4. Nxd4 {[%emt 0:00:00]} Nf6 {[%emt 0:00:00]} 5. Nc3 {[%emt 0:00:10]} a6 {[%emt 0:00:00]} 6. Be3 {[%emt 0:00:10]} e5 {[%emt 0:00:00]} 7. Nf3 {[%emt 0:00:42]} Be6 {[%emt 0:01:11]} 8. Be2 {[%emt 0:01:57]} h6 {[%emt 0:00:52]} 9. Nd2 {[%emt 0:01:13]} b5 {[%emt 0:00:58]} 10. f3 {[%emt 0:01:32]} h5 {[%emt 0:03:01]} 11. Bg5 {[%emt 0:04:07]} Be7 {[%emt 0:01:09]} 12. Bh4 {[%emt 0:02:49]} Nbd7 {[%emt 0:01:43]} 13. a3 {[%emt 0:01:37]} Qc7 {[%emt 0:01:56]} 14. Nb3 {[%emt 0:01:52]} Rc8 {[%emt 0:04:26]} 15. Bd3 {[%emt 0:03:10]} Nb6 {[%emt 0:02:07]} 16. Nd2 {[%emt 0:03:02]} Qd7 {[%emt 0:10:49]} 17. Bf2 {[%emt 0:05:32]} Nc4 {[%emt 0:02:11]} 18. Nxc4 {[%emt 0:01:18]} Bxc4 {[%emt 0:00:22]} 19. Qd2 {[%emt 0:02:44]} Qc6 {[%emt 0:03:40]} 20. O-O {[%emt 0:04:50]} Nd7 {[%emt 0:01:54]} 21. Rac1 {[%emt 0:02:24]} Be6 {[%emt 0:04:04]} 22. Rfd1 {[%emt 0:01:42]} Nb6 {[%emt 0:02:05]} 23. Be2 {[%emt 0:06:39]} Nc4 {[%emt 0:01:55]} 24. Bxc4 {[%emt 0:00:47]} Bxc4 {[%emt 0:01:05]} 25. Be3 {[%emt 0:01:20]} Be6 {[%emt 0:08:37]} 26. Nd5 {[%emt 0:02:56]} Bxd5 {[%emt 0:00:48]} 27. Qxd5 {[%emt 0:01:05]} Qxd5 {[%emt 0:00:35]} 28. Rxd5 {[%emt 0:00:10]} Rc4 {[%emt 0:00:46]} 29. Kf2 {[%emt 0:03:53]} Kd7 {[%emt 0:01:50]} 30. c3 {[%emt 0:00:51]} Rhc8 {[%emt 0:00:28]} 31. Rd3 {[%emt 0:02:01]} Ke6 {[%emt 0:02:24]} 32. Rh1 {[%emt 0:02:18]} Bd8 {[%emt 0:02:25]} 33. Rhd1 {[%emt 0:00:35]} R4c6 {[%emt 0:02:36]} 34. f4 {[%emt 0:02:24]} Bc7 {[%emt 0:04:26]} 35. g3 {[%emt 0:02:05]} Bb6 {[%emt 0:03:11]} 36. Bxb6 {[%emt 0:03:00]} Rxb6 {[%emt 0:00:16]} 37. Ke3 {[%emt 0:00:56]} g6 {[%emt 0:02:18]} 38. Rf1 {[%emt 0:01:11]} Rb7 {[%emt 0:01:06]} 39. Rd2 {[%emt 0:00:24]} f5 {[%emt 0:04:09]} 40. fxe5 {[%emt 0:06:18]} dxe5 {[%emt 0:00:32]} 41. Rfd1 {[%emt 0:31:15]} Rb6 {[%emt 0:32:18]} 42. Rd7 {[%emt 0:01:59]} fxe4 {[%emt 0:05:23]} 43. Kxe4 {[%emt 0:01:18]} Rc4+ {[%emt 0:01:37]} 44. Ke3 {[%emt 0:00:23]} h4 {[%emt 0:02:23]} 45. Rg7 {[%emt 0:01:42]} Kf5 {[%emt 0:03:24]} 46. Rf7+ {[%emt 0:02:28]} Kg5 {[%emt 0:16:00]} 47. Rg1 {[%emt 0:02:46]} hxg3 {[%emt 0:00:00]} 48. Rxg3+ {[%emt 0:00:42]} Rg4 {[%emt 0:00:00]} 49. Rxg4+ {[%emt 0:01:52]} Kxg4 {[%emt 0:00:00]} 50. Ke4 {[%emt 0:00:45]} Re6 {[%emt 0:00:00]} 51. Kd5 {[%emt 0:01:05]} Re8 {[%emt 0:00:00]} 52. Ke4 {[%emt 0:00:38]} Re6 {[%emt 0:00:00]} 53. Rf2 {[%emt 0:00:48]} Kg5 {[%emt 0:00:00]} 54. Rg2+ {[%emt 0:01:02]} Kf6 {[%emt 0:00:00]} 55. b3 {[%emt 0:02:37]} Rc6 {[%emt 0:01:15]} 56. Rc2 {[%emt 0:00:22]} a5 {[%emt 0:01:13]} 57. c4 {[%emt 0:00:56]} a4 {[%emt 0:01:37]} 58. bxa4 {[%emt 0:00:37]} Rxc4+ {[%emt 0:01:15]} 59. Rxc4 {[%emt 0:04:02]} bxc4 {[%emt 0:00:02]} 60. a5 {[%emt 0:00:13]} c3 {[%emt 0:00:29]} 61. Kd3 {[%emt 0:00:12]} e4+ {[%emt 0:00:00]} 62. Kxc3 {[%emt 0:00:00]} Kf5 {[%emt 0:00:00]} 63. Kd2 {[%emt 0:00:00]} Kf4 {[%emt 0:00:00]} 64. Ke2 {[%emt 0:00:00]} Kg4 {[%emt 0:00:00]} 1-0

[Event "NED-ch U14 Girls 2019"]
[Site "Assen"]
[Date "2019.04.30"]
[Round "3.4"]
[White "Molanus, Eva"]
[Black "Honkoop, Stella"]
[Result "0-1"]
[ECO "E94"]
[WhiteElo "1258"]
[BlackElo "1629"]
[Annotator "NA"]
[PlyCount "80"]
[EventDate "2019.04.28"]
[EventType "swiss"]
[EventCountry "NED"]
[SourceTitle "playchess.com"]
[Source "ChessBase"]
[SourceQuality "1"]
[TimeControl "40/5400+30:1800+30"]

1. Nf3 {[%emt 0:00:00]} Nf6 {[%emt 0:00:06]} 2. d4 {[%emt 0:00:00]} g6 {[%emt 0:00:16]} 3. c4 {[%emt 0:00:25]} Bg7 {[%emt 0:00:11]} 4. Nc3 {[%emt 0:00:19]} O-O {[%emt 0:00:42]} 5. e4 {[%emt 0:00:39]} d6 {[%emt 0:02:39]} 6. Be3 {[%emt 0:01:48]} Nbd7 {[%emt 0:04:45]} 7. Be2 {[%emt 0:01:12]} e5 {[%emt 0:01:00]} 8. O-O {[%emt 0:05:50]} Re8 {[%emt 0:15:56]} 9. Qc2 {[%emt 0:10:38]} Qe7 {[%emt 0:24:33]} 10. Rfd1 {[%emt 0:14:07]} exd4 {[%emt 0:05:37]} 11. Rxd4 {[%emt 0:03:59]} Nc5 {[%emt 0:00:08]} 12. Bg5 {[%emt 0:08:35]} Qe6 {[%emt 0:02:46]} 13. Nd5 {[%emt 0:19:36]} Nxd5 {[%emt 0:01:18]} 14. cxd5 {[%emt 0:00:24]} Qd7 {[%emt 0:00:22]} 15. Rc4 {[%emt 0:03:24]} a5 {[%emt 0:03:18]} 16. a4 {[%emt 0:02:38]} b6 {[%emt 0:08:16]} 17. Nd4 {[%emt 0:04:54]} Rxe4 {[%emt 0:06:30]} 18. Nb3 {[%emt 0:04:51]} Rxc4 {[%emt 0:01:14]} 19. Bxc4 {[%emt 0:00:29]} Nxa4 {[%emt 0:06:44]} 20. Qe2 {[%emt 0:04:14]} Nc5 {[%emt 0:02:04]} 21. Nxc5 {[%emt 0:01:24]} dxc5 {[%emt 0:01:23]} 22. Bb5 {[%emt 0:00:29]} Qd6 {[%emt 0:02:19]} 23. Be7 {[%emt 0:01:33]} Qe5 {[%emt 0:02:14]} 24. Bd8 {[%emt 0:02:05]} Qxe2 {[%emt 0:03:35]} 25. Bxe2 {[%emt 0:00:11]} Be5 {[%emt 0:00:39]} 26. Bb5 {[%emt 0:00:35]} Bf5 {[%emt 0:01:03]} 27. Bg5 {[%emt 0:00:39]} Bxb2 {[%emt 0:01:25]} 28. Re1 {[%emt 0:00:09]} f6 {[%emt 0:01:25]} 29. Bh6 {[%emt 0:00:21]} Be5 {[%emt 0:00:14]} 30. f4 {[%emt 0:00:26]} Bd6 {[%emt 0:00:22]} 31. Bc6 {[%emt 0:00:10]} Rd8 {[%emt 0:00:21]} 32. h3 {[%emt 0:00:44]} Bf8 {[%emt 0:01:30]} 33. Bxf8 {[%emt 0:00:10]} Kxf8 {[%emt 0:00:22]} 34. g4 {[%emt 0:00:10]} Bd7 {[%emt 0:00:18]} 35. Rb1 {[%emt 0:01:27]} Bxc6 {[%emt 0:00:24]} 36. dxc6 {[%emt 0:00:02]} Rd6 {[%emt 0:00:10]} 37. h4 {[%emt 0:00:28]} Rxc6 {[%emt 0:00:25]} 38. g5 {[%emt 0:00:11]} f5 {[%emt 0:00:28]} 39. Kf2 {[%emt 0:00:08]} c4 {[%emt 0:00:21]} 40. Ke3 {[%emt 0:00:10]} Rd6 {[%emt 0:00:10]} 0-1

[Event "NED-ch U14 Girls 2019"]
[Site "Assen"]
[Date "2019.04.30"]
[Round "3.5"]
[White "Bogouslavskii, Veronique"]
[Black "Yeh, Nora"]
[Result "0-1"]
[ECO "C54"]
[WhiteElo "1247"]
[BlackElo "1529"]
[Annotator "NA"]
[PlyCount "160"]
[EventDate "2019.04.28"]
[EventType "swiss"]
[EventCountry "NED"]
[SourceTitle "playchess.com"]
[Source "ChessBase"]
[SourceQuality "1"]
[TimeControl "40/5400+30:1800+30"]

1. e4 {[%emt 0:00:00]} e5 {[%emt 0:00:00]} 2. Nf3 {[%emt 0:00:00]} Nc6 {[%emt 0:00:00]} 3. Bc4 {[%emt 0:00:00]} Bc5 {[%emt 0:00:00]} 4. O-O {[%emt 0:00:40]} Nf6 {[%emt 0:00:01]} 5. Re1 {[%emt 0:00:45]} d6 {[%emt 0:00:07]} 6. c3 {[%emt 0:01:38]} Bg4 {[%emt 0:00:40]} 7. d3 {[%emt 0:00:30]} h6 {[%emt 0:00:23]} 8. Nbd2 {[%emt 0:03:26]} O-O {[%emt 0:00:37]} 9. a4 {[%emt 0:02:57]} a5 {[%emt 0:01:42]} 10. b3 {[%emt 0:07:23]} Nh7 {[%emt 0:07:46]} 11. Nf1 {[%emt 0:07:01]} Qf6 {[%emt 0:11:07]} 12. Ne3 {[%emt 0:06:19]} Bxf3 {[%emt 0:02:10]} 13. Qxf3 {[%emt 0:00:17]} Qxf3 {[%emt 0:00:09]} 14. gxf3 {[%emt 0:00:02]} Bxe3 {[%emt 0:00:16]} 15. Bxe3 {[%emt 0:00:33]} Rad8 {[%emt 0:00:40]} 16. Kh1 {[%emt 0:00:34]} Ne7 {[%emt 0:02:28]} 17. Rg1 {[%emt 0:01:56]} g5 {[%emt 0:04:49]} 18. h4 {[%emt 0:03:31]} Kg7 {[%emt 0:05:26]} 19. hxg5 {[%emt 0:07:11]} hxg5 {[%emt 0:02:01]} 20. Bxg5 {[%emt 0:00:31]} Nxg5 {[%emt 0:00:25]} 21. Rxg5+ {[%emt 0:00:11]} Kf6 {[%emt 0:01:25]} 22. Rg3 {[%emt 0:01:26]} Rh8+ {[%emt 0:00:13]} 23. Kg2 {[%emt 0:00:30]} Rdg8 {[%emt 0:00:37]} 24. Rh1 {[%emt 0:01:06]} Rxh1 {[%emt 0:02:23]} 25. Kxh1 {[%emt 0:00:02]} Rh8+ {[%emt 0:00:24]} 26. Kg2 {[%emt 0:00:08]} c6 {[%emt 0:00:23]} 27. d4 {[%emt 0:11:14]} Ng6 {[%emt 0:03:48]} 28. Kf1 {[%emt 0:08:05]} Nf4 {[%emt 0:01:13]} 29. Rg1 {[%emt 0:04:08]} Rh2 {[%emt 0:01:41]} 30. Ke1 {[%emt 0:02:04]} Nh3 {[%emt 0:02:04]} 31. Rf1 {[%emt 0:00:17]} Ng5 {[%emt 0:00:57]} 32. Be2 {[%emt 0:04:56]} Rh3 {[%emt 0:01:03]} 33. Kd1 {[%emt 0:05:30]} Nxf3 {[%emt 0:01:12]} 34. Bxf3 {[%emt 0:01:12]} Rxf3 {[%emt 0:00:11]} 35. Kd2 {[%emt 0:01:19]} exd4 {[%emt 0:00:11]} 36. cxd4 {[%emt 0:00:36]} Rxb3 {[%emt 0:00:08]} 37. Ra1 {[%emt 0:00:27]} Rb4 {[%emt 0:00:28]} 38. Ke3 {[%emt 0:02:13]} Rb3+ {[%emt 0:49:52]} 39. Kd2 {[%emt 0:01:59]} Ke6 {[%emt 0:00:00]} 40. Ra2 {[%emt 0:02:54]} Rf3 {[%emt 0:00:00]} 41. Ke2 {[%emt 0:30:22]} Rb3 {[%emt 0:00:00]} 42. Kd2 {[%emt 0:00:22]} f5 {[%emt 0:00:00]} 43. exf5+ {[%emt 0:00:58]} Kxf5 {[%emt 0:00:00]} 44. Ke2 {[%emt 0:00:35]} Ke4 {[%emt 0:00:00]} 45. Kf1 {[%emt 0:02:00]} Kxd4 {[%emt 0:00:00]} 46. f4 {[%emt 0:00:38]} Ke4 {[%emt 0:00:00]} 47. Rf2 {[%emt 0:00:03]} Kf5 {[%emt 0:00:00]} 48. Kg2 {[%emt 0:00:38]} Rb4 {[%emt 0:00:00]} 49. Rd2 {[%emt 0:00:49]} d5 {[%emt 0:00:00]} 50. Kg3 {[%emt 0:00:32]} Rxf4 {[%emt 0:00:00]} 51. Rb2 {[%emt 0:00:15]} Rxa4 {[%emt 0:00:00]} 52. Rxb7 {[%emt 0:00:08]} Ra3+ {[%emt 0:00:00]} 53. Kf2 {[%emt 0:00:17]} d4 {[%emt 0:00:00]} 54. Rc7 {[%emt 0:00:03]} Rc3 {[%emt 0:00:00]} 55. Ra7 {[%emt 0:00:04]} Rc5 {[%emt 0:00:00]} 56. Ke2 {[%emt 0:01:11]} Ke4 {[%emt 0:00:00]} 57. Re7+ {[%emt 0:00:39]} Re5 {[%emt 0:00:00]} 58. Rc7 {[%emt 0:00:15]} d3+ {[%emt 0:00:00]} 59. Kd2 {[%emt 0:00:09]} Rc5 {[%emt 0:00:00]} 60. Rd7 {[%emt 0:00:22]} Rc2+ {[%emt 0:00:00]} 61. Kd1 {[%emt 0:00:13]} a4 {[%emt 0:00:00]} 62. Ra7 {[%emt 0:00:07]} Ra2 {[%emt 0:00:00]} 63. Rc7 {[%emt 0:00:14]} Ke3 {[%emt 0:00:00]} 64. Re7+ {[%emt 0:00:30]} Kd4 {[%emt 0:00:00]} 65. Rd7+ {[%emt 0:00:19]} Kc3 {[%emt 0:00:00]} 66. Ke1 {[%emt 0:00:48]} d2+ {[%emt 0:44:00]} 67. Ke2 {[%emt 0:00:43]} Rb2 {[%emt 0:00:00]} 68. Rd6 {[%emt 0:00:12]} c5 {[%emt 0:00:00]} 69. Ra6 {[%emt 0:00:40]} Kc2 {[%emt 0:00:00]} 70. Rd6 {[%emt 0:00:59]} Kc1 {[%emt 0:00:00]} 71. Ke3 {[%emt 0:00:45]} d1=Q {[%emt 0:00:00]} 72. Rxd1+ {[%emt 0:00:05]} Kxd1 {[%emt 0:00:00]} 73. Kd3 {[%emt 0:00:03]} a3 {[%emt 0:00:00]} 74. Kc3 {[%emt 0:00:03]} c4 {[%emt 0:00:00]} 75. Kxc4 {[%emt 0:00:06]} a2 {[%emt 0:00:00]} 76. Kc3 {[%emt 0:00:02]} a1=Q {[%emt 0:00:00]} 77. Kd3 {[%emt 0:00:06]} Qa3+ {[%emt 0:00:00]} 78. Kc4 {[%emt 0:00:06]} Qa4+ {[%emt 0:00:00]} 79. Kc5 {[%emt 0:00:24]} Rb5+ {[%emt 0:00:00]} 80. Kc6 {[%emt 0:00:09]} Qa6+ {[%emt 0:00:00]} 0-1